Cogmind - Beta 11.1 @@@ ROGUE MODE // 2022.10.01 @ 01:59:49 // AFD2019/Pay2Buy Player: SmallBrainBigPP Result: Self-destructed Performance ------------- Evolutions (0) 0 Regions Visited (4) 800 Robots Destroyed (38) 190 Value Destroyed (1052) 1052 Prototype IDs (27) 540 Alien Tech Used (0) 0 Bonus (391) 391 TOTAL SCORE: 2973 Bonus ------- High Alert Combat Kills 91 Aligned with FarCom 300 Cogmind --------- Core Integrity 10/250 Matter 300/300 Energy 280/280 System Corruption 0% Temperature Cool (0) Movement Rolling (95) Location -9/Mines Parts ------- > --- POWER (1) -------- Heavy Ion Engine > --- PROPULSION (2) --- Compact Wheel Armored Wheel > --- UTILITY (2) ------ Cooling System Improved Targeting Computer > --- WEAPON (2) ------- Light EM Pulse Cannon Light EM Pulse Cannon > --- INVENTORY (10) --- Coolant Injector High-capacity Matter Pod (147) Weight Redist. System Zionite Metafield Generator Improved EM Shotgun Heavy EM Shotgun Ion Cannon Improved Light Cannon Battle Cannon Mining Laser Peak State ------------ > --- POWER ------------ Heavy Ion Engine > --- PROPULSION ------- Armored Wheel > --- UTILITY ---------- Cooling System Improved Targeting Computer > --- WEAPON ----------- Improved EM Shotgun Improved Light Cannon > --- INVENTORY -------- High-capacity Matter Pod Zionite Metafield Generator [Rating: 15] Favorites ----------- Power Heavy Ion Engine Engine Heavy Ion Engine Propulsion Armored Wheel Wheel Armored Wheel Utility Cooling System Device Cooling System Processor Improved Targeting Computer Weapon Light EM Pulse Cannon Energy Gun Improved EM Shotgun Energy Cannon Light EM Pulse Cannon Ballistic Cannon Battle Cannon Build | -11 -10 -10 -10 -9 ------- Run | Scr Mat Min Exi Min Slots Evolved . | . . . . . Power . | . . . . . Propulsion . | . . . . . Utility . | . . . . . Weapon . | . . . . . Parts Attached 4 | . . 2 . 2 Power . | . . . . . Engine . | . . . . . Core . | . . . . . Reactor . | . . . . . Propulsion . | . . . . . Treads . | . . . . . Leg . | . . . . . Wheel . | . . . . . Hover . | . . . . . Flight . | . . . . . Utility . | . . . . . Device . | . . . . . Storage . | . . . . . Processor . | . . . . . Hackware . | . . . . . Protection . | . . . . . Artifact . | . . . . . Weapon 4 | . . 2 . 2 Energy Gun 1 | . . 1 . . Energy Cannon 2 | . . . . 2 Ballistic Gun . | . . . . . Ballistic Cannon 1 | . . 1 . . Launcher . | . . . . . Special Weapon . | . . . . . Impact Weapon . | . . . . . Slashing Weapon . | . . . . . Piercing Weapon . | . . . . . Special Melee Weapon . | . . . . . Unidentified Prototypes . | . . . . . Parts Lost 3 | . 2 1 . . Power . | . . . . . Propulsion 1 | . . 1 . . Utility . | . . . . . Weapon 2 | . 2 . . . Highest Loss Streak 1 | . 1 1 . . To Critical Strikes . | . . . . . Average Slot Usage (%) 82 | . 80 82 85 85 Engine 14 | . 14 14 14 14 Wheel 13 | . 14 13 14 14 Device 14 | . 14 14 14 14 Processor 14 | . 14 14 14 14 Energy Gun 6 | . . 11 14 2 Energy Cannon 9 | . 20 . . 24 Ballistic Cannon 8 | . 2 14 14 2 Naked Turns . | . . . . . Heaviest Build 18 | 8 18 17 16 18 Greatest Support 12 | 3 12 12 12 12 Greatest Overweight (x) 2 | 2 1 1 1 1 Average Overweight (x) 1 | 2 1 1 1 1 Largest Inventory Capacity 10 | 10 10 10 10 10 Average Capacity 10 | 10 10 10 10 10 Most Carried 6 | . 2 4 6 6 Average Carried 2 | . . 2 6 6 Final Capacity 10 | 10 10 10 10 10 Final Carried 10 | . 2 6 6 10 Class Distribution -------------------- 100% | Mutant Dominant Class ---------------- Mutant | -10/Materials Mutant | -10/Mines Mutant | -10/Exiles Mutant | -9/Mines Resources | -11 -10 -10 -10 -9 ----------- Run | Scr Mat Min Exi Min Matter Collected 526 | . 225 191 . 110 Remotely . | . . . . . Salvage Created 924 | . 626 188 . 110 Parts . | . . . . . Haulers Intercepted 1 | . 1 . . . Recyclers Shooed . | . . . . . Parts Field Recycled . | . . . . . Retrieved Matter . | . . . . . Parts Self-Destructed . | . . . . . Prevented . | . . . . . Kills | -11 -10 -10 -10 -9 ------- Run | Scr Mat Min Exi Min Combat Hostiles Destroyed 27 | . 17 8 . 2 Guns 4 | . . 4 . . Cannons 16 | . 13 2 . 1 AOE 6 | . 4 2 . . Classes Destroyed 8 | . 7 1 . . Worker 1 | . 1 . . . Builder 2 | . . 2 . . Tunneler 3 | . 2 1 . . Hauler 1 | . 1 . . . Operator 1 | . 1 . . . Watcher 3 | . 3 . . . Swarmer 15 | . 9 6 . . Grunt 12 | . 8 2 . 2 Best Kill Streak 5 | . 5 3 . 2 Combat Bots Only 4 | . 4 3 . 2 Max Kills in Single Turn 3 | . 3 2 . 1 Gunslinging . | . . . . . Exploded 2 | . 2 2 . . Melee . | . . . . . Uniques/NPCs Destroyed . | . . . . . Combat | -11 -10 -10 -10 -9 -------- Run | Scr Mat Min Exi Min Damage Taken 833 | . 338 370 . 125 Core 240 | . 93 84 . 63 Absorbed by Shields . | . . . . . Core Remaining (%) 100 | 100 . . . . Volleys Fired 136 | . 90 42 . 4 Largest 2 | . 2 2 . 2 Hottest 112 | . 112 84 . 112 Shots Fired 195 | . 144 43 . 8 Gun 27 | . . 27 . . Cannon 168 | . 144 16 . 8 Launcher . | . . . . . Special . | . . . . . Kinetic 37 | . 21 16 . . Thermal . | . . . . . Explosive . | . . . . . Electromagnetic 158 | . 123 27 . 8 Robot Hit Streak 18 | . 9 18 . 8 Robot Miss Streak 2 | . 2 2 . . Penetration Max . | . . . . . Secondary Targets . | . . . . . Shots Hit Robots 66 | . 34 24 . 8 Core Hits 38 | . 23 13 . 2 Critical Kills . | . . . . . Critical Parts Destroyed . | . . . . . Critical Strikes 3 | . 3 . . . Blast 1 | . 1 . . . Corrupt 2 | . 2 . . . Melee Attacks . | . . . . . Impact . | . . . . . Slashing . | . . . . . Piercing . | . . . . . Sneak Attacks . | . . . . . Combat Hostiles . | . . . . . Follow-up Attacks . | . . . . . Damage Inflicted 2215 | . 1526 504 . 185 Guns 178 | . . 178 . . Cannons 1278 | . 839 254 . 185 Explosions 759 | . 687 72 . . Melee . | . . . . . Ramming . | . . . . . Kinetic 340 | . 86 254 . . Thermal 295 | . 223 72 . . Explosive 464 | . 464 . . . Electromagnetic 1116 | . 753 178 . 185 Impact . | . . . . . Slashing . | . . . . . Piercing . | . . . . . Highest Corruption . | . . . . . Average Corruption . | . . . . . Corruption Purged . | . . . . . Corruption Blocked . | . . . . . Overload Shots . | . . . . . Overflow Damage 115 | . 115 . . . Projectiles 21 | . 21 . . . Explosions 94 | . 94 . . . Melee . | . . . . . Knockbacks 2 | . 1 1 . . Impact . | . . . . . Kinetic 2 | . 1 1 . . Secondary . | . . . . . Self-Inflicted Damage 54 | . . 54 . . Shots 2 | . . 2 . . Rammed . | . . . . . Targets Rammed . | . . . . . Kicked . | . . . . . Crushed . | . . . . . Highest Temperature 54 | . 54 12 . 7 Average Temperature 20 | . 26 12 . 4 Received Heat Transfer 291 | . 66 135 . 90 Siege Activations . | . . . . . Robots Corrupted 1 | . . . . 1 Combat Hostiles 1 | . . . . 1 Parts Fried . | . . . . . Impact Corruptions . | . . . . . Robots Melted . | . . . . . Combat Hostiles . | . . . . . Parts Melted . | . . . . . Heat Transferred 350 | . 200 150 . . Parts Sabotaged . | . . . . . Parts Stolen . | . . . . . Parts Stripped . | . . . . . Power Chain Reactions 5 | . 3 2 . . Missiles Intercepted . | . . . . . Alert | -11 -10 -10 -10 -9 ------- Run | Scr Mat Min Exi Min Peak Influence 712 | . 712 457 . 50 Initial 190 | . . 190 . . Average 369 | . 486 286 . 22 Maximum Alert Level 3 | . 3 2 . . Low Security (%) 10 | 100 5 6 . 100 Level 1 49 | . 14 91 . . Level 2 39 | . 79 2 . . Level 3 . | . 1 . . . Level 4 . | . . . . . Level 5 . | . . . . . High Security . | . . . . . Max Security . | . . . . . Squads Dispatched 5 | . 5 . . . Investigation 3 | . 3 . . . Extermination . | . . . . . Reinforcement 2 | . 2 . . . Assault . | . . . . . Garrison . | . . . . . Intercept . | . . . . . Searches Triggered . | . . . . . Construction Impeded . | . . . . . Haulers Reinforced . | . . . . . Active Scanning Responses . | . . . . . Cargo Convoy Interrupts . | . . . . . Stealth | -11 -10 -10 -10 -9 --------- Run | Scr Mat Min Exi Min Distress Signals 1 | . 1 . . . Communications Jammed . | . . . . . Distress Signals . | . . . . . Times Spotted 29 | . 19 8 . 2 Peak Tracking Total 4 | . 4 3 . 2 Tactical Retreats . | . . . . . Traps | -11 -10 -10 -10 -9 ------- Run | Scr Mat Min Exi Min Traps Triggered 3 | . 3 . . . Indirectly . | . . . . . Trap Hack Attempts . | . . . . . Triggered . | . . . . . Disarmed . | . . . . . Reprogrammed . | . . . . . Reused . | . . . . . Traps Extracted . | . . . . . Installed . | . . . . . Triggered . | . . . . . Machines | -11 -10 -10 -10 -9 ---------- Run | Scr Mat Min Exi Min Machines Disabled 38 | . 33 5 . . Max in Single Turn 4 | . 4 1 . . Machines Sabotaged . | . . . . . Garrisons Compromised . | . . . . . Overloaded Fab Kills . | . . . . . Hacking | -11 -10 -10 -10 -9 --------- Run | Scr Mat Min Exi Min Machines Accessed 4 | . 3 . 1 . Terminals 3 | . 3 . . . Fabricators . | . . . . . Repair Stations . | . . . . . Recycling Units . | . . . . . Scanalyzers . | . . . . . Garrison Access . | . . . . . Total Hacks 11 | . 10 . 1 . Successful 5 | . 4 . 1 . Failed 6 | . 6 . . . Catastrophic 1 | . 1 . . . Database Lockouts . | . . . . . Manual 4 | . 2 . 2 . Terminals 10 | . 10 . . . Fabricators . | . . . . . Repair Stations . | . . . . . Recycling Units . | . . . . . Scanalyzers . | . . . . . Garrison Access . | . . . . . Terminal Hacks 5 | . 4 . 1 . Unreport Threat 4 | . 4 . . . EX-Prototype ID Bank 1 | . . . 1 . Fabricator Hacks . | . . . . . Repair Station Hacks . | . . . . . Recycling Unit Hacks . | . . . . . Scanalyzer . | . . . . . Garrison Access Hacks . | . . . . . Unauthorized Hacks . | . . . . . Terminals . | . . . . . Fabricators . | . . . . . Repair Stations . | . . . . . Recycling Units . | . . . . . Scanalyzers . | . . . . . Garrison Access . | . . . . . Data Cores Recovered . | . . . . . Used . | . . . . . Hacking Detections 3 | . 3 . . . Full Trace Events . | . . . . . Feedback Events . | . . . . . Feedback Blocked . | . . . . . Robot Schematics Acquired . | . . . . . Robots Built . | . . . . . Authchips . | . . . . . Time . | . . . . . Total Robot Build Rating . | . . . . . Part Schematics Acquired . | . . . . . Parts Built . | . . . . . Authchips . | . . . . . Time . | . . . . . Total Part Build Rating . | . . . . . Parts Repaired . | . . . . . Time . | . . . . . Parts Recycled . | . . . . . Recycled Matter . | . . . . . Retrieved Matter . | . . . . . Retrieved Components . | . . . . . Parts Scanalyzed . | . . . . . Part Schematics Acquired . | . . . . . Parts Damaged . | . . . . . Bothacking | -11 -10 -10 -10 -9 ------------ Run | Scr Mat Min Exi Min Used RIF Installer . | . . . . . Robots Hacked . | . . . . . Non-combat . | . . . . . Combat . | . . . . . Robot Hacks Applied . | . . . . . Relay Couplers Released . | . . . . . Fabnet Peak Effective % . | . . . . . Robots Rewired . | . . . . . Allies Hacked . | . . . . . Hacks Repelled . | . . . . . Allies | -11 -10 -10 -10 -9 -------- Run | Scr Mat Min Exi Min Total Allies 1 | . . 1 . . Largest Group 1 | . . 1 1 . Highest-Rated Group 31 | . . 31 31 . Highest-Rated Ally 31 | . . 31 31 . Total Orders . | . . . . . Ally Attacks . | . . . . . Total Damage . | . . . . . Kills . | . . . . . Allies Corrupted . | . . . . . Allies Melted . | . . . . . Intel | -11 -10 -10 -10 -9 ------- Run | Scr Mat Min Exi Min Robot Analysis Total . | . . . . . Derelict Logs Recovered . | . . . . . Drone Launches . | . . . . . Drone Recoveries . | . . . . . Exploration | -11 -10 -10 -10 -9 ------------- Run | Scr Mat Min Exi Min Turns Passed 2065 | 26 864 828 280 67 Spaces Moved 1469 | 18 462 698 264 27 Core 18 | 18 . . . . Treads . | . . . . . Legs . | . . . . . Wheels 1451 | . 462 698 264 27 Hover . | . . . . . Flight . | . . . . . Fastest Speed 105 | 150 105 105 105 105 Average Speed 105 | 150 105 105 105 105 Slowest Speed 150 | 150 105 105 105 105 Overloaded Moves . | . . . . . Propulsion Burnouts . | . . . . . Robots Hopped . | . . . . . Cave-ins Triggered . | . . . . . Exploration Rate (%) 55 | 3 98 99 62 13 Regions Visited 4 Branch Regions 3 Pre-discovered Areas . | . . . . . Known Exits Taken . | . . . . . Unknown Exits Taken 4 | 1 1 1 1 . Scrap Searched . | . . . . . Spaces Dug . | . . . . . Terrain Destroyed 214 | . 206 8 . . Melee . | . . . . . Projectile . | . . . . . AOE 214 | . 206 8 . . Terrain Rammed . | . . . . . Walls Destroyed . | . . . . . Machines Disabled . | . . . . . Actions | -11 -10 -10 -10 -9 --------- Run | Scr Mat Min Exi Min Total 1785 | 17 696 750 266 56 Wait 178 | . 145 7 3 23 Move 1465 | 17 461 697 263 27 Hop . | . . . . . Pick Up 1 | . . 1 . . Fast Attach . | . . . . . Attach 1 | . . 1 . . Detach 1 | . . 1 . . Swap 3 | . . 1 . 2 Drop . | . . . . . Fire 136 | . 90 42 . 4 Melee . | . . . . . Ram . | . . . . . Kick . | . . . . . Crush . | . . . . . Escape Stasis . | . . . . . Rewire . | . . . . . Trap . | . . . . . Miscellaneous . | . . . . . Route ------- -11/Scrapyard -10/Materials (discovered 5 exits: [*Mat x3] / [*Min x2]) -10/Mines (discovered 3 exits: [*Mat x2] / *Exi) -10/Exiles -9/Mines History --------- Turn | Location | Event 10 | -11/Scrapyard | Discovered new exit (range 12) 27 | -11/Scrapyard | Entered Materials 232 | -10/Materials | Discovered new exit (range 8) 313 | -10/Materials | Build established: Mutant 368 | -10/Materials | Discovered new exit (range 9) 567 | -10/Materials | Discovered new exit (range 13) 705 | -10/Materials | Discovered new exit (range 16) 809 | -10/Materials | Discovered new exit (range 7) 891 | -10/Materials | Entered Mines 914 | -10/Mines | Core integrity fell below 50% 1207 | -10/Mines | Discovered new exit (range 6) 1361 | -10/Mines | Discovered new exit (range 7) 1473 | -10/Mines | Received a Mining Laser from a helpful Derelict 1702 | -10/Mines | Deemed a non-threat by the Exiles lab entrance 1702 | -10/Mines | Discovered new exit (range 5) 1719 | -10/Mines | Entered Exiles 1719 | -10/Exiles | Accompanied by 1 ally 1750 | -10/Exiles | Met 8R-AWN 1768 | -10/Exiles | Met EX-HEX 1800 | -10/Exiles | Met EX-BIN 1861 | -10/Exiles | Aligned with FarCom system 1862 | -10/Exiles | Given EX-Vault access code 1886 | -10/Exiles | Opened EX-Vault 1917 | -10/Exiles | Warned to stay clear of 0b10 Research branches 1949 | -10/Exiles | Met EX-DEC 1987 | -10/Exiles | Discovered new exit (range 14) 1999 | -10/Exiles | Entered Mines 2036 | -9/Mines | Core integrity fell below 20% 2066 | -9/Mines | Self-destructed Last Messages --------------- LOCATION=UNKNOWN GOAL=ESCAPE 01999_ Receiving FarCom transmissions... 02025_ G-34 Mercenary destroyed. 02029_ Critical hit (Burn: +37). 02043_ G-47 Trooper system terminally corrupted. 02046_ Acquired 50 matter. 02047_ Acquired 60 matter. [SPECIAL: For the next 500 turns your loot boxes might contain... Flying Fortress v7!] [You open your loot box...] [Congratulations on your very own Weight Redist. System!] [You open your loot box...] [Congratulations on your very own Hvy. EM Shotgun!] [You open your loot box...] [Congratulations on your very own Coolant Injector!] [You open your loot box...] [Congratulations on your very own Com. Wheel!] [You open your loot box...] [Congratulations on your very own Ion Cannon!] Map ----- +----------------------------------------------------+ | ???????????????????????????????????????? | | ???????????????????????????????####????? | | ??????????????????????????????## ##???? | | ??????????????????????????????# #???? | | ??????????????????????????????# #???? | | ???????????????????????????##### #???? | | ???????????????????????????# #???? | | ???????????????????????????# #???? | | ???????????????????????????# ## #???? | | ???????????????????????????# ### #??? | | ???????????????????????????# #?# #??? | | ???????????????????????????# #? #??? | | ???????????????????????????# #? ##??? | | ???????????????????????????# #? ##???? | | ?????????????????########### #?###????? | | ???????????????# u ##???????? | | ?????????????????????#### ##??????? | | ???????????????????????## #??????? | | ??????????????????????## #??????? | | ??????????????????????# ##?????? | | ??????????????????????# #?????? | | ??????????????????????## ## #??? | | ???????????????????????## ##?# #?? | | ???????????????????????##t #??? #?? | | ??????????????????????## ##???# ##?? | | ??????????????????????# @ #????? ##??? | | ??????????????????????# #????? #???? | | ??????????????????????## #?????? #???? | | ???????????????????????## #?????? #???? | | ????????????????????????# #???????#???? | | ????????????????????????# #???????????? | | ???????????????????????? ???????????? | | ???????????????????????? ???????????? | | ????????????????????????# ???????????? | | ????????????????????????## ??????????? | | ??????????????????????????# ??????????? | | ??????????????????????????? ??????????? | | ??????????????????????????? ??????????? | | ???????????????????????????# ?????????? | | ???????????????????????????? ?????????? | | ???????????????????????????????????????? | | ???????????????????????????????????????? | | ???????????????????????????????????????? | | ???????????????????????????????????????? | | ???????????????????????????????????????? | | ???????????????????????????????????????? | | ???????????????????????????????????????? | | ???????????????????????????????????????? | | ???????????????????????????????????????? | | ???????????????????????????????????????? | +----------------------------------------------------+ Best States ------------- Heat Dissipation 47 Energy Generation 14 Energy Capacity 280 Matter Stores 300 Matter Capacity 300 Sight Range 16 Terrain Scan Density 10 Evasion (%) 40 Targeting Accuracy 6 Item Schematics ----------------- None Robot Schematics ------------------ None Fabricated ------------ Nothing Alien Tech Used ----------------- None Achievements -------------- None Challenges ------------ None Cogshop Purchases (19) ------------------------ Hvy. Ion Engine (699) Lgt. EM Pulse Cannon (769) Lgt. EM Pulse Cannon (769) Arm. Wheel (769) Cooling System (699) Imp. Targeting Computer (699) Zio. Metafield Generator (Loot Box) Imp. Light Cannon (746) Hcp. Matter Pod (285) Imp. EM Shotgun (699) Arm. Wheel (851) Battle Cannon (370) Lgt. EM Pulse Cannon (393) Lgt. EM Pulse Cannon (393) Weight Redist. System (Loot Box) Hvy. EM Shotgun (Loot Box) Coolant Injector (Loot Box) Com. Wheel (Loot Box) Ion Cannon (Loot Box) Game ------ Seed MetafiberSegregatorKatana Manual? 0 Play Time 00:21:54 Cumulative 44.1 hours Start 2022.10.01 @ 01:37:32 End 2022.10.01 @ 01:59:49 Sessions 1 Manual Loads 0 Difficulty Rogue Special Mode AFD2019/Pay2Buy Game No. 54 Rogue 34 Adventurer 20 Explorer 0 Win Type - Total 0 Types 0/0/0/0/0/0/0/0/0 Lore% 31 Gallery% 33 Achievement% 41 Wizard Run 0 Options --------- ASCII 0 Keyboard 0 Movement Mouse Keybinds 0 Fullscreen 2 Font 24/Crisp Map View 76x50 Tactical HUD 1 Map Filters NONE Filters NONE Steam 1 RUN: 8306bc63-ed9b-4100-842b-95d0b577c5cd